[Event "TUR-chT Superleague 2018"]
[Site "Ankara"]
[Date "2018.07.26"]
[Round "2"]
[White "Apaydin, Fethi"]
[Black "Kitir, Ahmet"]
[Result "1-0"]
[ECO "B23"]
[WhiteElo "2353"]
[BlackElo "2020"]
[Annotator "NA"]
[PlyCount "64"]
[EventDate "2018.07.25"]
[EventType "team-tourn"]
[EventCountry "TUR"]
[SourceTitle "playchess.com"]
[Source "ChessBase"]
[SourceQuality "1"]
[TimeControl "40/5400+30:1800+30"]

1. e4 {[%emt 0:00:30]} c5 {[%emt 0:01:00]} 2. Nc3 {[%emt 0:00:30]} e6 {[%emt 0:00:30]} 3. Nge2 {[%emt 0:00:00]} d5 {[%emt 0:00:30]} 4. exd5 {[%emt 0:00:00]} exd5 {[%emt 0:01:30]} 5. d4 {[%emt 0:00:00]} Nc6 {[%emt 0:07:30]} 6. Be3 {[%emt 0:02:00]} c4 {[%emt 0:02:30]} 7. g3 {[%emt 0:00:30]} Nf6 {[%emt 0:12:30]} 8. Bg2 {[%emt 0:03:30]} Be6 {[%emt 0:06:30]} 9. Nf4 {[%emt 0:03:30]} Bg4 {[%emt 0:14:30]} 10. f3 {[%emt 0:20:30]} Bc8 {[%emt 0:17:30]} 11. Qe2 {[%emt 0:12:30]} Bb4 {[%emt 0:10:30]} 12. Bd2+ {[%emt 0:06:30]} Ne7 {[%emt 0:07:42]} 13. g4 {[%emt 0:05:30]} O-O {[%emt 0:00:07]} 14. O-O {[%emt 0:03:30]} Re8 {[%emt 0:01:24]} 15. Qf2 {[%emt 0:03:30]} Ng6 {[%emt 0:00:43]} 16. Nfe2 {[%emt 0:14:30]} h6 {[%emt 0:03:53]} 17. h3 {[%emt 0:05:23]} Bd7 {[%emt 0:05:52]} 18. f4 {[%emt 0:01:21]} Bc6 {[%emt 0:01:12]} 19. g5 {[%emt 0:03:32]} Bxc3 {[%emt 0:00:57]} 20. Nxc3 {[%emt 0:00:11]} Ne4 {[%emt 0:00:35]} 21. Nxe4 {[%emt 0:01:53]} dxe4 {[%emt 0:00:02]} 22. f5 {[%emt 0:02:14]} Nh4 {[%emt 0:00:43]} 23. Qxh4 {[%emt 0:02:30]} Qxd4+ {[%emt 0:00:30]} 24. Rf2 {[%emt 0:00:05]} Qxb2 {[%emt 0:01:02]} 25. Re1 {[%emt 0:00:52]} e3 {[%emt 0:00:08]} 26. Rxe3 {[%emt 0:01:25]} c3 {[%emt 0:01:13]} 27. Rxc3 {[%emt 0:04:35]} Rad8 {[%emt 0:01:20]} 28. gxh6 {[%emt 0:01:58]} Rxd2 {[%emt 0:00:30]} 29. Qg3 {[%emt 0:00:00]} Rd1+ {[%emt 0:01:40]} 30. Kh2 {[%emt 0:00:00]} g6 {[%emt 0:00:42]} 31. fxg6 {[%emt 0:00:00]} f6 {[%emt 0:00:14]} 32. g7 {[%emt 0:01:40]} Qc1 {[%emt 0:01:01]} 1-0

[Event "TUR-chT Superleague 2018"]
[Site "Ankara"]
[Date "2018.07.26"]
[Round "2"]
[White "Savina, Anastasia"]
[Black "Atalik, Ekaterina"]
[Result "0-1"]
[ECO "D85"]
[WhiteElo "2342"]
[BlackElo "2461"]
[Annotator "ChessBase"]
[PlyCount "48"]
[EventDate "2018.07.25"]
[EventType "team-tourn"]
[EventCountry "TUR"]
[SourceTitle "playchess.com"]
[Source "ChessBase"]
[SourceQuality "1"]
[TimeControl "40/5400+30:1800+30"]

1. d4 {[%emt 0:00:30]} Nf6 {[%emt 0:01:00]} 2. c4 {[%emt 0:00:30]} g6 {[%emt 0:00:30]} 3. Nc3 {[%emt 0:00:00]} d5 {[%emt 0:00:00]} 4. cxd5 {[%emt 0:00:00]} Nxd5 {[%emt 0:00:00]} 5. e4 {[%emt 0:00:30]} Nxc3 {[%emt 0:00:30]} 6. bxc3 {[%emt 0:00:30]} Bg7 {[%emt 0:00:30]} 7. Nf3 {[%emt 0:00:00]} c5 {[%emt 0:00:30]} 8. h3 {[%emt 0:00:00]} O-O {[%emt 0:01:30]} 9. Be3 {[%emt 0:01:30]} Qa5 {[%emt 0:01:30]} 10. Bd2 {[%emt 0:00:30]} Nd7 {[%emt 0:02:30]} 11. Be2 {[%emt 0:18:30]} Qc7 {[%emt 0:04:30]} 12. O-O {[%emt 0:04:30]} b6 {[%emt 0:02:30]} 13. e5 {[%emt 0:10:30]} Bb7 {[%emt 0:03:30]} 14. Re1 {[%emt 0:03:30]} e6 {[%emt 0:02:30]} 15. Nh2 {[%emt 0:03:30]} f6 {[%emt 0:06:30]} 16. Bc4 {[%emt 0:14:30]} Rae8 {[%emt 0:08:30]} 17. exf6 {[%emt 0:04:30]} Nxf6 {[%emt 0:00:30]} 18. Bxe6+ {[%emt 0:15:33]} Kh8 {[%emt 0:03:30]} 19. c4 {[%emt 0:12:17]} Ne4 {[%emt 0:06:30]} 20. d5 {[%emt 0:01:37]} Rxe6 {[%emt 0:12:30]} 21. dxe6 {[%emt 0:00:23]} Rxf2 {[%emt 0:02:30]} 22. Nf1 {[%emt 0:07:06]} Rxg2+ {[%emt 0:04:30]} 23. Kxg2 {[%emt 0:00:31]} Nxd2+ {[%emt 0:00:00]} 24. Kg1 {[%emt 0:00:32]} Bd4+ {[%emt 0:00:00]} 0-1

[Event "TUR-chT Superleague 2018"]
[Site "Ankara"]
[Date "2018.07.26"]
[Round "2"]
[White "Soylu, Suat"]
[Black "Benidze, Davit"]
[Result "0-1"]
[ECO "B15"]
[WhiteElo "2339"]
[BlackElo "2487"]
[Annotator "ChessBase"]
[PlyCount "126"]
[EventDate "2018.07.25"]
[EventType "team-tourn"]
[EventCountry "TUR"]
[SourceTitle "playchess.com"]
[Source "ChessBase"]
[SourceQuality "1"]
[TimeControl "40/5400+30:1800+30"]

1. e4 c6 2. d4 g6 3. Nc3 Bg7 4. Nf3 d5 5. h3 Nh6 6. Bd3 f6 7. O-O Nf7 8. Ne2 O-O 9. c4 dxe4 10. Bxe4 Na6 11. Bc2 Nc7 12. b3 b5 13. Bd3 Nd6 14. Bf4 Be6 15. Rc1 Bf7 16. Qd2 Re8 17. Rfd1 bxc4 18. bxc4 Qc8 19. Ng3 Rd8 20. Qa5 Ne6 21. Be3 Qc7 22. Qa4 Nf8 23. Nd2 Nc8 24. Nb3 Nb6 25. Qa5 Rac8 26. Ne4 Nfd7 27. Be2 Qb8 28. Nec5 Nxc5 29. Nxc5 f5 30. Na6 Qa8 31. g3 Bf6 32. Bf1 h5 33. f4 Rd7 34. Nc5 Rd6 35. Bf2 Rcd8 36. Nb3 R6d7 37. Qc5 h4 38. g4 Qb8 39. g5 Bg7 40. Be3 e5 41. fxe5 Bxe5 42. Qxc6 Bh2+ 43. Kh1 Nd5 44. Bf2 Bf4 45. Nc5 Rc7 46. Qa4 Bxc1 47. Rxc1 Nf4 48. Qb3 Qc8 {[%emt 2:01:30]} 49. Rd1 {[%emt 2:22:10]} Re7 {[%emt 0:00:30]} 50. Qf3 {[%emt 0:00:30]} Nd5 {[%emt 0:00:30]} 51. Kg1 {[%emt 0:00:30]} Nb6 {[%emt 0:00:30]} 52. d5 {[%emt 0:00:25]} Qc7 {[%emt 0:01:30]} 53. Na6 {[%emt 0:00:42]} Qd7 {[%emt 0:01:30]} 54. Nc5 {[%emt 0:00:55]} Qd6 {[%emt 0:00:30]} 55. Nb3 {[%emt 0:00:12]} Qc7 {[%emt 0:02:08]} 56. d6 {[%emt 0:00:30]} Rxd6 {[%emt 0:00:30]} 57. Rxd6 {[%emt 0:00:00]} Qxd6 {[%emt 0:00:00]} 58. c5 {[%emt 0:00:15]} Qd5 {[%emt 0:00:00]} 59. Qc3 {[%emt 0:01:01]} Nc4 {[%emt 0:00:52]} 60. Bd4 {[%emt 0:01:43]} f4 {[%emt 0:00:30]} 61. Bf6 {[%emt 0:00:20]} Re3 {[%emt 0:01:31]} 62. Qd4 {[%emt 0:00:24]} Rg3+ {[%emt 0:00:44]} 63. Kh2 {[%emt 0:00:30]} Ne3 {[%emt 0:00:00]} 0-1

[Event "TUR-chT Superleague 2018"]
[Site "Ankara"]
[Date "2018.07.26"]
[Round "2"]
[White "Buksa, Nataliya"]
[Black "Ozturk, Kubra"]
[Result "1-0"]
[ECO "C76"]
[WhiteElo "2337"]
[BlackElo "2330"]
[Annotator "NA"]
[PlyCount "129"]
[EventDate "2018.07.25"]
[EventType "team-tourn"]
[EventCountry "TUR"]
[SourceTitle "playchess.com"]
[Source "ChessBase"]
[SourceQuality "1"]
[TimeControl "40/5400+30:1800+30"]

1. e4 e5 2. Nf3 Nc6 3. Bb5 a6 4. Ba4 d6 5. c3 Bd7 6. d4 g6 7. Bg5 f6 8. Be3 Bg7 9. d5 Nce7 10. Bxd7+ Qxd7 11. O-O Nh6 12. c4 O-O 13. Nc3 Nf7 14. Nd2 f5 15. f3 f4 16. Bf2 g5 17. b4 h5 18. c5 g4 19. Na4 g3 20. hxg3 fxg3 21. Bxg3 Ng6 22. cxd6 cxd6 23. Nb6 Qe7 24. Nxa8 Rxa8 25. Nc4 Qg5 26. Qe1 Bh6 27. Kh1 Kh7 28. Bf2 Nf4 29. g3 Rg8 30. Rg1 Nh3 31. Rg2 b5 32. Be3 Qf6 33. Nd2 h4 34. Bxh6 Qxh6 35. gxh4 Rxg2 36. Kxg2 Nf4+ 37. Kf1 Nd3 38. Qe2 Qxh4 39. Qxd3 Qh1+ 40. Ke2 Qxa1 41. Qc2 Qg1 42. Qc8 Qa7 43. Nb3 Kg7 44. Qc1 Kf6 45. Na5 Qd7 46. Qh1 Kg7 47. Qh4 {[%emt 2:08:27]} Qa7 {[%emt 2:14:51]} 48. Nc6 {[%emt 0:00:30]} Qb6 {[%emt 0:00:30]} 49. Qg4+ {[%emt 0:00:30]} Kf8 {[%emt 0:00:30]} 50. Qc8+ {[%emt 0:00:30]} Kg7 {[%emt 0:00:30]} 51. Qd7 {[%emt 0:00:29]} Kf6 {[%emt 0:03:51]} 52. Qe7+ {[%emt 0:01:37]} Kg7 {[%emt 0:00:45]} 53. Qa7 {[%emt 0:03:51]} Qxa7 {[%emt 0:00:30]} 54. Nxa7 {[%emt 0:00:00]} Kf8 {[%emt 0:00:00]} 55. Nc6 {[%emt 0:00:50]} Ke8 {[%emt 0:00:12]} 56. Ke3 {[%emt 0:00:00]} Ng5 {[%emt 0:00:43]} 57. f4 {[%emt 0:00:50]} exf4+ {[%emt 0:00:05]} 58. Kxf4 {[%emt 0:00:30]} Nh3+ {[%emt 0:00:20]} 59. Kf5 {[%emt 0:00:48]} Nf2 {[%emt 0:00:38]} 60. Nb8 {[%emt 0:01:57]} Kd8 {[%emt 0:00:26]} 61. Nxa6 {[%emt 0:00:57]} Kc8 {[%emt 0:02:18]} 62. e5 {[%emt 0:00:36]} dxe5 {[%emt 0:00:12]} 63. Nc5 {[%emt 0:00:15]} Nd1 {[%emt 0:02:07]} 64. Ke6 {[%emt 0:02:36]} Nc3 {[%emt 0:00:23]} 65. d6 {[%emt 0:00:00]} 1-0

[Event "TUR-chT Superleague 2018"]
[Site "Ankara"]
[Date "2018.07.26"]
[Round "2"]
[White "Balajayeva, Khanim"]
[Black "Ozbek, Busra"]
[Result "1-0"]
[ECO "B01"]
[WhiteElo "2332"]
[BlackElo "1848"]
[Annotator "NA"]
[PlyCount "104"]
[EventDate "2018.07.25"]
[EventType "team-tourn"]
[EventCountry "TUR"]
[SourceTitle "playchess.com"]
[Source "ChessBase"]
[SourceQuality "1"]
[TimeControl "40/5400+30:1800+30"]

1. e4 d5 2. exd5 Qxd5 3. Nc3 Qd8 4. d4 Nf6 5. Nf3 Bg4 6. h3 Bxf3 7. Qxf3 c6 8. Be3 e6 9. Bd3 Nbd7 10. O-O Bd6 11. Rfe1 O-O 12. Rad1 Qc7 13. Ne4 Nxe4 14. Qxe4 g6 15. Qf3 a5 16. h4 b5 17. h5 Rfe8 18. Bg5 Nb6 19. Re4 Be7 20. Bxe7 Rxe7 21. Rde1 Rae8 22. hxg6 hxg6 23. Rh4 f5 24. Rh6 Rg7 25. Bxf5 Qf7 26. Qxc6 gxf5 27. Qxb6 Rxg2+ 28. Kxg2 Qg7+ 29. Kf1 Qxh6 30. Qc6 Kf7 31. Qf3 Qh4 32. c3 Re7 33. Ke2 Qg5 34. Qe3 Qg2 35. Qf3 Qg5 36. Rh1 Kf6 37. Qe3 f4 38. Qe5+ Kg6 39. Qxg5+ Kxg5 40. Kf3 e5 41. Re1 Kf6 42. Rxe5 Rxe5 43. dxe5+ Kxe5 44. Ke2 Kd6 45. Kd3 Ke5 46. f3 Kd5 47. b3 b4 48. Kc2 Ke5 49. Kb2 bxc3+ 50. Kxc3 Kd5 51. a3 Ke5 52. Kc4 Ke6 1-0

[Event "TUR-chT Superleague 2018"]
[Site "Ankara"]
[Date "2018.07.26"]
[Round "2"]
[White "Sari, Yasin"]
[Black "Erdogan, Anil Berk"]
[Result "0-1"]
[ECO "A65"]
[WhiteElo "2330"]
[BlackElo "2110"]
[Annotator "NA"]
[PlyCount "116"]
[EventDate "2018.07.25"]
[EventType "team-tourn"]
[EventCountry "TUR"]
[SourceTitle "playchess.com"]
[Source "ChessBase"]
[SourceQuality "1"]
[TimeControl "40/5400+30:1800+30"]

1. d4 Nf6 2. c4 c5 3. d5 e6 4. Nc3 exd5 5. cxd5 d6 6. e4 g6 7. Nge2 Bg7 8. Ng3 h5 9. Be2 h4 10. Nf1 h3 11. g3 O-O 12. Bf4 b5 13. Nd2 a6 14. O-O Re8 15. Bf3 Qc7 16. Rc1 Nbd7 17. b4 c4 18. Be3 Ne5 19. Be2 Nfg4 20. Bd4 f5 21. Nf3 Nxf3+ 22. Bxf3 Bxd4 23. Qxd4 Ne5 24. Be2 Qa7 25. Rfd1 Qxd4 26. Rxd4 Re7 27. f4 Nd7 28. exf5 gxf5 29. Bf1 Nf6 30. Bxh3 Bd7 31. Rd2 a5 32. a3 axb4 33. axb4 Ra3 34. Bg2 Re3 35. Rdc2 Rb3 36. Na2 Red3 37. Rc3 Nxd5 38. Rxd3 Rxd3 39. Bxd5+ Rxd5 40. Rc2 Rd3 41. Nc1 Rd1+ 42. Kf2 Be8 43. g4 fxg4 44. f5 Bd7 45. Ne2 Bxf5 46. Ra2 Rd3 {[%emt 2:12:12]} 47. Ra5 {[%emt 2:12:08]} c3 {[%emt 0:03:40]} 48. Rxb5 {[%emt 0:01:48]} c2 {[%emt 0:00:22]} 49. Rb8+ {[%emt 0:02:19]} Kf7 {[%emt 0:00:30]} 50. Rb7+ {[%emt 0:00:30]} Kf6 {[%emt 0:00:00]} 51. Rc7 {[%emt 0:00:00]} Rd1 {[%emt 0:00:00]} 52. b5 {[%emt 0:01:38]} Rb1 {[%emt 0:03:29]} 53. Rc6 {[%emt 0:02:15]} Ke5 {[%emt 0:00:44]} 54. b6 {[%emt 0:01:24]} Bd3 {[%emt 0:01:09]} 55. b7 {[%emt 0:01:52]} Rxb7 {[%emt 0:00:30]} 56. Nc1 {[%emt 0:00:00]} Bf5 {[%emt 0:00:20]} 57. Ke3 {[%emt 0:00:49]} Rh7 {[%emt 0:00:39]} 58. Ra6 {[%emt 0:03:29]} Rh3+ {[%emt 0:00:18]} 0-1

[Event "TUR-chT Superleague 2018"]
[Site "Ankara"]
[Date "2018.07.26"]
[Round "2"]
[White "Tuncer, Tuna"]
[Black "Caglar, Ahmet Ata"]
[Result "1-0"]
[ECO "A49"]
[WhiteElo "2328"]
[BlackElo "2097"]
[Annotator "NA"]
[PlyCount "115"]
[EventDate "2018.07.25"]
[EventType "team-tourn"]
[EventCountry "TUR"]
[SourceTitle "playchess.com"]
[Source "ChessBase"]
[SourceQuality "1"]
[TimeControl "40/5400+30:1800+30"]

1. Nf3 Nf6 2. g3 g6 3. b3 Bg7 4. Bb2 O-O 5. Bg2 d6 6. d4 a5 7. c4 a4 8. O-O c5 9. Nbd2 cxd4 10. Nxd4 Qb6 11. Bc3 a3 12. Rc1 Bd7 13. h3 Rc8 14. e4 Nc6 15. Nc2 h5 16. Qe1 h4 17. g4 Ne8 18. Bxg7 Nxg7 19. Nf3 Ne5 20. Qd2 Nxf3+ 21. Bxf3 Ne6 22. Ne3 Qd4 23. Rfd1 Qxd2 24. Rxd2 Bc6 25. Bg2 Nf4 26. f3 Kf8 27. Bf1 Bd7 28. Nd5 Nxd5 29. exd5 b5 30. Rdc2 bxc4 31. Rxc4 Rxc4 32. Bxc4 Rc8 33. Kf2 e6 34. Rd1 Ke7 35. Ke3 Rc5 36. Rd2 Bc8 37. dxe6 fxe6 38. Bd3 g5 39. Rc2 Rxc2 40. Bxc2 e5 41. Bf5 Bb7 42. Be4 d5 43. Bd3 Kd6 44. Be2 Kc5 45. Bd1 Kb4 46. Kd2 Ba6 47. Be2 Bxe2 48. Kxe2 Kc3 49. Kd1 Kb2 50. b4 Kxa2 51. Kc2 d4 52. b5 d3+ 53. Kxd3 Kb1 54. b6 a2 55. b7 a1=Q 56. b8=Q+ Kc1 57. Qc8+ Kb2 58. Qc3+ 1-0

[Event "TUR-chT Superleague 2018"]
[Site "Ankara"]
[Date "2018.07.26"]
[Round "2"]
[White "Yildiz Kadioglu, Betul Cemre"]
[Black "Unuk, Laura"]
[Result "1/2-1/2"]
[ECO "E54"]
[WhiteElo "2323"]
[BlackElo "2355"]
[Annotator "NA"]
[PlyCount "91"]
[EventDate "2018.07.25"]
[EventType "team-tourn"]
[EventCountry "TUR"]
[SourceTitle "playchess.com"]
[Source "ChessBase"]
[SourceQuality "1"]
[TimeControl "40/5400+30:1800+30"]

1. d4 {[%emt 0:00:30]} Nf6 {[%emt 0:01:00]} 2. c4 {[%emt 0:00:30]} e6 {[%emt 0:00:30]} 3. Nc3 {[%emt 0:00:00]} Bb4 {[%emt 0:02:30]} 4. e3 {[%emt 0:01:00]} O-O {[%emt 0:00:30]} 5. Bd3 {[%emt 0:00:00]} d5 {[%emt 0:01:30]} 6. Nf3 {[%emt 0:00:00]} c5 {[%emt 0:11:30]} 7. O-O {[%emt 0:00:30]} dxc4 {[%emt 0:00:30]} 8. Bxc4 {[%emt 0:00:30]} a6 {[%emt 0:00:30]} 9. a3 {[%emt 0:06:30]} Bxc3 {[%emt 0:02:30]} 10. bxc3 {[%emt 0:00:30]} b5 {[%emt 0:00:30]} 11. Be2 {[%emt 0:09:30]} Bb7 {[%emt 0:00:30]} 12. a4 {[%emt 0:07:30]} Ne4 {[%emt 0:16:30]} 13. Bd2 {[%emt 0:16:30]} c4 {[%emt 0:12:30]} 14. axb5 {[%emt 0:07:30]} axb5 {[%emt 0:00:30]} 15. Rxa8 {[%emt 0:00:30]} Bxa8 {[%emt 0:00:00]} 16. Qa1 {[%emt 0:00:30]} Qd5 {[%emt 0:05:00]} 17. Bc1 {[%emt 0:00:30]} Nd7 {[%emt 0:09:30]} 18. Ne1 {[%emt 0:03:30]} f5 {[%emt 0:01:30]} 19. f3 {[%emt 0:01:30]} Nef6 {[%emt 0:00:30]} 20. Nc2 {[%emt 0:01:30]} e5 {[%emt 0:08:30]} 21. Nb4 {[%emt 0:05:30]} Qe6 {[%emt 0:00:30]} 22. Qa5 {[%emt 0:06:30]} exd4 {[%emt 0:01:30]} 23. cxd4 {[%emt 0:01:30]} Rb8 {[%emt 0:00:30]} 24. Bd2 {[%emt 0:10:04]} Nd5 {[%emt 0:10:48]} 25. Na6 {[%emt 0:03:42]} Rc8 {[%emt 0:00:27]} 26. Qxb5 {[%emt 0:02:07]} c3 {[%emt 0:01:41]} 27. Bc1 {[%emt 0:00:22]} Nxe3 {[%emt 0:00:24]} 28. Re1 {[%emt 0:06:36]} f4 {[%emt 0:02:13]} 29. Nc5 {[%emt 0:04:17]} Nxc5 {[%emt 0:01:56]} 30. dxc5 {[%emt 0:00:02]} Bd5 {[%emt 0:00:45]} 31. Bd3 {[%emt 0:01:43]} Qe7 {[%emt 0:03:11]} 32. Bxe3 {[%emt 0:03:18]} fxe3 {[%emt 0:00:03]} 33. Bc2 {[%emt 0:00:24]} g6 {[%emt 0:04:41]} 34. Qd3 {[%emt 0:00:53]} Qxc5 {[%emt 0:01:18]} 35. Qxe3 {[%emt 0:00:07]} Kf7 {[%emt 0:00:14]} 36. Qxc5 {[%emt 0:01:39]} Rxc5 {[%emt 0:00:30]} 37. Re3 {[%emt 0:00:00]} Kf6 {[%emt 0:00:45]} 38. Kf2 {[%emt 0:00:19]} Be6 {[%emt 0:00:40]} 39. g4 {[%emt 0:00:33]} h5 {[%emt 0:00:39]} 40. h3 {[%emt 0:00:00]} hxg4 {[%emt 0:01:15]} 41. hxg4 {[%emt 0:08:54]} Rc6 {[%emt 0:00:30]} 42. Kg3 {[%emt 0:01:30]} g5 {[%emt 0:04:30]} 43. f4 {[%emt 0:02:30]} gxf4+ {[%emt 0:00:30]} 44. Kxf4 {[%emt 0:00:00]} Rc4+ {[%emt 0:00:30]} 45. Re4 {[%emt 0:01:00]} Rxe4+ {[%emt 0:00:30]} 46. Kxe4 {[%emt 0:00:00]} 1/2-1/2

[Event "TUR-chT Superleague 2018"]
[Site "Ankara"]
[Date "2018.07.26"]
[Round "2"]
[White "Injac, Teodora"]
[Black "Badelka, Olga"]
[Result "1/2-1/2"]
[ECO "E17"]
[WhiteElo "2302"]
[BlackElo "2407"]
[Annotator "NA"]
[PlyCount "141"]
[EventDate "2018.07.25"]
[EventType "team-tourn"]
[EventCountry "TUR"]
[SourceTitle "playchess.com"]
[Source "ChessBase"]
[SourceQuality "1"]
[TimeControl "40/5400+30:1800+30"]

1. d4 Nf6 2. Nf3 e6 3. c4 b6 4. g3 Bb7 5. Bg2 Be7 6. O-O O-O 7. Re1 Na6 8. Nc3 d5 9. cxd5 exd5 10. Bf4 c5 11. Rc1 Ne4 12. dxc5 Naxc5 13. Be5 Nxc3 14. Bxc3 Ne4 15. Bd4 Re8 16. a3 Bd6 17. e3 Qd7 18. Qd3 Qf5 19. Qe2 Nc5 20. Nh4 Qe6 21. Rcd1 Bf8 22. Qh5 Rad8 23. Nf3 f6 24. b4 Ne4 25. Bh3 Qe7 26. Rc1 g6 27. Qh4 Qf7 28. Qf4 Re7 29. Bg2 Bc8 30. h4 Bg7 31. Nh2 h5 32. Qb8 Nd6 33. Rc6 Red7 34. Rxd6 Rxd6 35. Rc1 Bh3 36. Qc7 Bxg2 37. Kxg2 R6d7 38. Qc2 Kh7 39. Nf3 Qe6 40. Qa4 Qe4 41. Rc6 Rf7 42. Qd1 Rdd7 43. Kg1 Qg4 44. Kg2 Rc7 45. Rd6 Rfd7 {[%emt 2:08:28]} 46. Rxf6 {[%emt 2:14:43]} Bxf6 {[%emt 0:00:30]} 47. Bxf6 {[%emt 0:00:30]} Kg8 {[%emt 0:00:25]} 48. Be5 {[%emt 0:01:30]} Rc8 {[%emt 0:00:12]} 49. Bf4 {[%emt 0:01:54]} Rf8 {[%emt 0:10:24]} 50. Qd4 {[%emt 0:01:12]} Qf5 {[%emt 0:01:36]} 51. Ng5 {[%emt 0:00:51]} Rc8 {[%emt 0:01:41]} 52. Qd1 {[%emt 0:02:34]} Rc2 {[%emt 0:02:52]} 53. e4 {[%emt 0:00:25]} Rxf2+ {[%emt 0:00:06]} 54. Kxf2 {[%emt 0:00:30]} dxe4 {[%emt 0:00:00]} 55. Qb3+ {[%emt 0:00:01]} Qd5 {[%emt 0:01:13]} 56. Qxd5+ {[%emt 0:01:22]} Rxd5 {[%emt 0:00:00]} 57. Nxe4 {[%emt 0:00:30]} Rd3 {[%emt 0:00:08]} 58. Bc1 {[%emt 0:00:58]} Rd1 {[%emt 0:00:38]} 59. Bf4 {[%emt 0:01:55]} Ra1 {[%emt 0:00:23]} 60. Ke3 {[%emt 0:00:39]} Rxa3+ {[%emt 0:00:30]} 61. Kd4 {[%emt 0:00:00]} Ra4 {[%emt 0:00:50]} 62. Kc4 {[%emt 0:00:13]} a5 {[%emt 0:00:59]} 63. Bd6 {[%emt 0:00:45]} Ra1 {[%emt 0:00:21]} 64. bxa5 {[%emt 0:01:01]} bxa5 {[%emt 0:00:04]} 65. Nc3 {[%emt 0:00:15]} Kf7 {[%emt 0:00:51]} 66. Kb5 {[%emt 0:00:37]} Rc1 {[%emt 0:00:48]} 67. Na4 {[%emt 0:00:17]} Ke6 {[%emt 0:00:14]} 68. Bf4 {[%emt 0:00:07]} Rf1 {[%emt 0:00:27]} 69. Kxa5 {[%emt 0:00:52]} Rxf4 {[%emt 0:00:40]} 70. gxf4 {[%emt 0:00:30]} Kf5 {[%emt 0:00:00]} 71. Kb4 {[%emt 0:00:16]} 1/2-1/2

[Event "TUR-chT Superleague 2018"]
[Site "Ankara"]
[Date "2018.07.26"]
[Round "2"]
[White "Ozenir, Ekin Baris"]
[Black "Kamer, Kayra"]
[Result "0-1"]
[ECO "A45"]
[WhiteElo "2300"]
[BlackElo "2181"]
[Annotator "NA"]
[PlyCount "52"]
[EventDate "2018.07.25"]
[EventType "team-tourn"]
[EventCountry "TUR"]
[SourceTitle "playchess.com"]
[Source "ChessBase"]
[SourceQuality "1"]
[TimeControl "40/5400+30:1800+30"]

1. d4 {[%emt 0:00:30]} Nf6 {[%emt 0:01:00]} 2. Bg5 {[%emt 0:00:30]} e6 {[%emt 0:00:30]} 3. e4 {[%emt 0:00:00]} c5 {[%emt 0:00:00]} 4. e5 {[%emt 0:10:00]} h6 {[%emt 0:00:00]} 5. Bc1 {[%emt 0:03:30]} Nd5 {[%emt 0:00:00]} 6. c4 {[%emt 0:02:30]} Nb6 {[%emt 0:00:00]} 7. Nf3 {[%emt 0:01:30]} cxd4 {[%emt 0:00:30]} 8. Qxd4 {[%emt 0:08:30]} Nc6 {[%emt 0:00:30]} 9. Qg4 {[%emt 0:06:30]} d5 {[%emt 0:01:30]} 10. cxd5 {[%emt 0:03:30]} Nb4 {[%emt 0:07:30]} 11. Na3 {[%emt 0:06:30]} Qxd5 {[%emt 0:00:30]} 12. Be3 {[%emt 0:07:30]} Bd7 {[%emt 0:03:30]} 13. Be2 {[%emt 0:13:30]} Nd3+ {[%emt 0:03:30]} 14. Bxd3 {[%emt 0:01:30]} Qxd3 {[%emt 0:00:00]} 15. Rd1 {[%emt 0:05:30]} Qa6 {[%emt 0:00:00]} 16. Bxb6 {[%emt 0:01:30]} Bxa3 {[%emt 0:04:30]} 17. bxa3 {[%emt 0:02:30]} axb6 {[%emt 0:00:30]} 18. Qxg7 {[%emt 0:00:30]} O-O-O {[%emt 0:00:30]} 19. Qg4 {[%emt 0:11:21]} Bc6 {[%emt 0:01:30]} 20. Rc1 {[%emt 0:03:22]} Kb8 {[%emt 0:03:30]} 21. Qc4 {[%emt 0:02:53]} Bb5 {[%emt 0:00:00]} 22. Qb4 {[%emt 0:00:31]} Rd5 {[%emt 0:01:00]} 23. Rd1 {[%emt 0:04:19]} Bf1 {[%emt 0:00:30]} 24. Qe4 {[%emt 0:02:56]} Qa5+ {[%emt 0:02:30]} 25. Nd2 {[%emt 0:00:33]} Bd3 {[%emt 0:01:30]} 26. Qb4 {[%emt 0:00:30]} Rxe5+ {[%emt 0:00:30]} 0-1

[Event "TUR-chT Superleague 2018"]
[Site "Ankara"]
[Date "2018.07.26"]
[Round "2"]
[White "Yaran, Siar"]
[Black "Ozcan, Kaan"]
[Result "1-0"]
[ECO "A16"]
[WhiteElo "2261"]
[BlackElo "1523"]
[Annotator "NA"]
[PlyCount "173"]
[EventDate "2018.07.25"]
[EventType "team-tourn"]
[EventCountry "TUR"]
[SourceTitle "playchess.com"]
[Source "ChessBase"]
[SourceQuality "1"]
[TimeControl "40/5400+30:1800+30"]

1. c4 Nf6 2. Nc3 d5 3. cxd5 Nxd5 4. Nf3 g6 5. e4 Nxc3 6. dxc3 Qxd1+ 7. Kxd1 Bg4 8. Be2 Bxf3 9. Bxf3 c6 10. Be3 Bg7 11. Kc2 Nd7 12. Rad1 a6 13. a4 O-O-O 14. b4 Rhe8 15. Be2 Nf6 16. f3 Rxd1 17. Rxd1 Rd8 18. Rb1 Nd7 19. b5 axb5 20. axb5 cxb5 21. Bxb5 Be5 22. Bc4 e6 23. h4 Bc7 24. h5 Ne5 25. Bb5 Nc6 26. Rh1 Bd6 27. hxg6 hxg6 28. Rh7 Rd7 29. f4 Kc7 30. e5 Bf8 31. g4 b6 32. Bf2 Bc5 33. Bg3 Re7 34. f5 gxf5 35. gxf5 Kb7 36. f6 Rc7 37. Be2 Be3 38. Bh5 Nd8 39. Bf3+ Nc6 40. Kd3 Bc1 41. Rh1 Ba3 42. Ra1 Bc5 43. Kc4 Kb8 44. Rh1 Nd8 45. Kb5 Be3 46. Rh8 Kc8 47. Bh5 {[%emt 2:10:24]} Kd7 {[%emt 2:14:38]} 48. Rf8 {[%emt 0:01:41]} Kc8 {[%emt 0:01:55]} 49. Re8 {[%emt 0:01:39]} Bc5 {[%emt 0:02:13]} 50. Ka4 {[%emt 0:04:15]} Kd7 {[%emt 0:01:50]} 51. Rg8 {[%emt 0:00:08]} Be3 {[%emt 0:00:36]} 52. Kb3 {[%emt 0:01:47]} Bc5 {[%emt 0:02:00]} 53. Be2 {[%emt 0:00:35]} Be3 {[%emt 0:01:41]} 54. Bb5+ {[%emt 0:00:16]} Kc8 {[%emt 0:00:00]} 55. Re8 {[%emt 0:00:29]} Bc5 {[%emt 0:01:18]} 56. Bf4 {[%emt 0:00:40]} Bf2 {[%emt 0:01:15]} 57. Ba6+ {[%emt 0:01:28]} Kd7 {[%emt 0:00:43]} 58. Re7+ {[%emt 0:01:18]} Kc6 {[%emt 0:00:09]} 59. Bb5+ {[%emt 0:00:02]} Kb7 {[%emt 0:00:51]} 60. Be8 {[%emt 0:00:24]} Bc5 {[%emt 0:00:05]} 61. Rxc7+ {[%emt 0:01:35]} Kxc7 {[%emt 0:00:30]} 62. Kc4 {[%emt 0:00:00]} Kb7 {[%emt 0:00:00]} 63. Kd3 {[%emt 0:00:41]} Ka6 {[%emt 0:00:22]} 64. Ke4 {[%emt 0:00:30]} b5 {[%emt 0:00:53]} 65. Bd2 {[%emt 0:03:35]} Bg1 {[%emt 0:00:55]} 66. Bc1 {[%emt 0:00:27]} Kb6 {[%emt 0:00:51]} 67. Ba3 {[%emt 0:00:29]} Bc5 {[%emt 0:00:07]} 68. Bb4 {[%emt 0:00:03]} Bf2 {[%emt 0:00:46]} 69. Be7 {[%emt 0:00:35]} Kc7 {[%emt 0:00:11]} 70. Bxb5 {[%emt 0:00:58]} Nc6 {[%emt 0:00:08]} 71. Bd6+ {[%emt 0:00:24]} Kb6 {[%emt 0:00:11]} 72. Be2 {[%emt 0:00:00]} Bc5 {[%emt 0:00:41]} 73. Bxc5+ {[%emt 0:01:07]} Kxc5 {[%emt 0:00:06]} 74. Ba6 {[%emt 0:00:38]} Nd8 {[%emt 0:01:05]} 75. c4 {[%emt 0:00:21]} Kb6 {[%emt 0:01:03]} 76. Bb5 {[%emt 0:00:30]} Kc5 {[%emt 0:00:30]} 77. Kd3 {[%emt 0:00:00]} Nb7 {[%emt 0:00:00]} 78. Be8 {[%emt 0:00:00]} Na5 {[%emt 0:00:17]} 79. Bxf7 {[%emt 0:00:49]} Nxc4 {[%emt 0:00:30]} 80. Ke4 {[%emt 0:00:00]} Nd6+ {[%emt 0:00:44]} 81. exd6 {[%emt 0:00:19]} Kxd6 {[%emt 0:00:00]} 82. Bg8 {[%emt 0:00:05]} Kd7 {[%emt 0:00:00]} 83. Ke5 {[%emt 0:00:30]} Ke8 {[%emt 0:00:28]} 84. Kxe6 {[%emt 0:00:00]} Kf8 {[%emt 0:00:10]} 85. Bh7 {[%emt 0:00:07]} Ke8 {[%emt 0:00:14]} 86. Bc2 {[%emt 0:00:10]} Kf8 {[%emt 0:00:21]} 87. f7 {[%emt 0:00:04]} 1-0